fUST/lending_fUST_20241112
["ID","MTS","AMOUNT","RATE_DAILY","PERIOD"]
[342082292,1731420640578,-851.81,0.00021917,2]
[342082293,1731420640587,-500.0,0.00021917,2]
[342082294,1731420640596,-500.0,0.00021917,2]
[342082295,1731420640605,-500.0,0.00021917,2]
[342082296,1731420640615,-633.42,0.00021917,2]
[342082297,1731420640624,-500.83473165,0.00021917,2]
[342082298,1731420640636,-500.0,0.00021917,2]
[342082299,1731420640646,-500.0,0.00021917,2]
[342082300,1731420640655,-232.43662554,0.00021917,2]
[342082301,1731420640787,-500.0,0.00021917,2]
[342082302,1731420640799,-500.0,0.00021917,2]
[342082303,1731420640809,-543.88530108,0.00021917,2]
[342082304,1731420640818,-537.56981005,0.00021917,2]
[342082305,1731420640827,-500.0,0.00021917,2]
[342082306,1731420640838,-201.76032042,0.00021917,2]
[342082307,1731420640848,-500.0,0.00021917,2]
[342082308,1731420640857,-500.0,0.00021917,2]
[342082309,1731420640867,-500.0,0.00021917,2]
[342082310,1731420640881,-500.0,0.00021917,2]
[342082311,1731420640893,-526.54183215,0.00021917,2]
[342082312,1731420640902,-500.0,0.00021917,2]
[342082313,1731420640912,-511.52229824,0.00021917,2]
[342082314,1731420640921,-500.0,0.00021917,2]
[342082315,1731420640931,-500.0,0.00021917,2]
[342082316,1731420640941,-618.55851878,0.00021917,2]
[342082317,1731420640950,-500.0,0.00021917,2]
[342082318,1731420640959,-519.48923598,0.00021917,2]
[342082319,1731420640968,-500.0,0.00021917,2]
[342082320,1731420640978,-500.0,0.00021917,2]
[342082321,1731420640987,-500.0,0.00021917,2]
[342082322,1731420640996,-500.0,0.00021917,2]
[342082323,1731420641006,-500.0,0.00021917,2]
[342082324,1731420641015,-178.69489092,0.00021917,2]
[342082325,1731420641024,-468.35750796,0.00021917,2]
[342082326,1731420641034,-500.0,0.00021917,2]
[342082327,1731420641043,-500.0,0.00021917,2]
[342082328,1731420641052,-500.0,0.00021917,2]
[342082329,1731420641061,-500.0,0.00021917,2]
[342082330,1731420641071,-500.0,0.00021917,2]
[342082331,1731420641081,-500.0,0.00021917,2]
[342082332,1731420641091,-624.74,0.00021917,2]
[342082333,1731420641100,-500.0,0.00021917,2]
[342082334,1731420641110,-500.0,0.00021917,2]
[342082335,1731420641119,-500.0,0.00021917,2]
[342082336,1731420641133,-504.59,0.00021917,2]
[342082337,1731420641142,-346.57337129,0.00021917,2]
[342082338,1731420641151,-519.24064583,0.00021917,2]
[342082339,1731420641161,-500.0,0.00021917,2]
[342082340,1731420641170,-528.01,0.00021917,2]
[342082341,1731420641180,-500.0,0.00021917,2]
[342082342,1731420641189,-508.98404572,0.00021917,2]
[342082343,1731420641199,-500.0,0.00021917,2]
[342082344,1731420641208,-500.0,0.00021917,2]
[342082345,1731420641217,-632.14001942,0.00021917,2]
[342082346,1731420641227,-500.0,0.00021917,2]
[342082347,1731420641236,-500.0,0.00021917,2]
[342082348,1731420641247,-161.76408677,0.00021917,2]
[342082349,1731420641256,-500.0,0.00021917,2]
[342082350,1731420641265,-503.98862093,0.00021917,2]
[342082351,1731420641274,-500.0,0.00021917,2]
[342082352,1731420641283,-500.0,0.00021917,2]
[342082353,1731420641293,-500.0,0.00021917,2]
[342082354,1731420641302,-500.0,0.00021917,2]
[342082355,1731420641312,-500.0,0.00021917,2]
[342082356,1731420641321,-500.0,0.00021917,2]
[342082357,1731420641330,-500.0,0.00021917,2]
[342082358,1731420641339,-1981.07,0.00021917,2]
[342082359,1731420641348,-500.0,0.00021917,2]
[342082360,1731420641358,-500.0,0.00021917,2]
[342082361,1731420641368,-500.0,0.00021917,2]
[342082362,1731420641382,-1332.96,0.00021917,2]
[342082363,1731420641391,-563.41616564,0.00021917,2]
[342082364,1731420641400,-500.0,0.00021917,2]
[342082365,1731420641410,-500.0,0.00021917,2]
[342082366,1731420641419,-579.66,0.00021917,2]
[342082367,1731420641429,-500.0,0.00021917,2]
[342082368,1731420641438,-1182.16,0.00021917,2]
[342082369,1731420641447,-593.64,0.00021917,2]
[342082370,1731420641457,-500.0,0.00021917,2]
[342082371,1731420641466,-500.0,0.00021917,2]
[342082372,1731420641476,-500.0,0.00021917,2]
[342082373,1731420641486,-500.0,0.00021917,2]
[342082374,1731420641495,-500.0,0.00021917,2]
[342082375,1731420641505,-535.51903949,0.00021917,2]
[342082376,1731420641514,-500.0,0.00021917,2]
[342082377,1731420641523,-779.3,0.00021917,2]
[342082378,1731420641533,-500.0,0.00021917,2]
[342082379,1731420641542,-500.0,0.00021917,2]
[342082380,1731420641551,-1656.1,0.00021917,2]
[342082381,1731420641560,-500.0,0.00021917,2]
[342082382,1731420641570,-500.0,0.00021917,2]
[342082383,1731420641579,-500.0,0.00021917,2]
[342082384,1731420641588,-892.31,0.00021917,2]
[342082385,1731420641597,-500.0,0.00021917,2]
[342082386,1731420641607,-500.0,0.00021917,2]
[342082387,1731420641616,-500.0,0.00021917,2]
[342082388,1731420641627,-1615.45,0.00021917,2]
[342082389,1731420641637,-2336.0,0.00021917,2]
[342082390,1731420641646,-522.39,0.00021917,2]
[342082391,1731420641656,-500.0,0.00021917,2]
[342082392,1731420641665,-500.0,0.00021917,2]
[342082393,1731420641674,-500.0,0.00021917,2]
[342082394,1731420641683,-500.0,0.00021917,2]
[342082395,1731420641693,-500.0,0.00021917,2]
[342082396,1731420641702,-509.02768448,0.00021917,2]
[342082397,1731420641711,-500.0,0.00021917,2]
[342082398,1731420641721,-838.12,0.00021917,2]
[342082399,1731420641730,-540.34143649,0.00021917,2]
[342082400,1731420641739,-500.0,0.00021917,2]
[342082401,1731420641749,-500.0,0.00021917,2]
[342082402,1731420641758,-500.0,0.00021917,2]
[342082403,1731420641768,-500.0,0.00021917,2]
[342082404,1731420641777,-500.0,0.00021917,2]
[342082405,1731420641787,-858.81,0.00021917,2]
[342082406,1731420641797,-503.12537179,0.00021917,2]
[342082407,1731420641808,-500.0,0.00021917,2]
[342082408,1731420641818,-500.0,0.00021917,2]
[342082409,1731420641827,-2691.44,0.00021917,2]
[342082410,1731420641836,-834.53,0.00021917,2]
[342082411,1731420641847,-500.0,0.00021917,2]
[342082412,1731420641856,-500.0,0.00021917,2]
[342082413,1731420641865,-5841.68,0.00021917,2]
[342082414,1731420641877,-500.0,0.00021917,2]
[342082415,1731420641887,-500.0,0.00021917,2]
[342082416,1731420641897,-500.0,0.00021917,2]
[342082417,1731420641907,-878.25,0.00021917,2]
[342082418,1731420641916,-500.0,0.00021917,2]
[342082419,1731420641925,-960.91,0.00021917,2]
[342082420,1731420641934,-500.0,0.00021917,2]
[342082421,1731420641943,-6841.83,0.00021917,2]
[342082422,1731420641953,-511.6832253,0.00021917,2]
[342082423,1731420641962,-500.0,0.00021917,2]
[342082424,1731420641972,-500.0,0.00021917,2]
[342082425,1731420641981,-1001.33,0.00021917,2]
[342082426,1731420641991,-500.0,0.00021917,2]
[342082427,1731420642000,-500.0,0.00021917,2]
[342082428,1731420642009,-500.0,0.00021917,2]
[342082429,1731420642018,-650.18,0.00021917,2]
[342082430,1731420642028,-500.0,0.00021917,2]
[342082431,1731420642037,-500.0,0.00021917,2]
[342082432,1731420642048,-657.68,0.00021917,2]
[342082433,1731420642057,-500.0,0.00021917,2]
[342082434,1731420642067,-500.0,0.00021917,2]
[342082435,1731420642076,-756.45,0.00021917,2]
[342082436,1731420642085,-500.0,0.00021917,2]
[342082437,1731420642094,-500.0,0.00021917,2]
[342082438,1731420642103,-500.88286344,0.00021917,2]
[342082439,1731420642113,-500.0,0.00021917,2]
[342082440,1731420642122,-500.0,0.00021917,2]
[342082441,1731420642134,-515.08155479,0.00021917,2]
[342082442,1731420642143,-598.00750615,0.00021917,2]
[342082443,1731420642153,-1418.75,0.00021917,2]
[342082444,1731420642162,-500.0,0.00021917,2]
[342082445,1731420642171,-500.0,0.00021917,2]
[342082446,1731420642181,-1015.96,0.00021917,2]
[342082447,1731420642190,-500.0,0.00021917,2]
[342082448,1731420642200,-500.0,0.00021917,2]
[342082449,1731420642209,-500.0,0.00021917,2]
[342082450,1731420642219,-564.83,0.00021917,2]
[342082451,1731420642228,-500.0,0.00021917,2]
[342082452,1731420642237,-508.78385389,0.00021917,2]
[342082469,1731420643170,-3039.56249703,0.00021917,2]
[342082487,1731420645987,-688.82835451,0.00021917,2]
[342082488,1731420645999,-6074.64529457,0.00021917,2]
[342082489,1731420646009,-500.0,0.00021917,2]
[342082490,1731420646019,-1080.44,0.00021917,2]
[342082491,1731420646029,-151.28,0.00021917,2]
[342082493,1731420646039,-5762.08,0.00021917,2]
[342082494,1731420646049,-500.0,0.00021917,2]
[342082495,1731420646059,-500.0,0.00021917,2]
[342082496,1731420646069,-500.0,0.00021917,2]
[342082497,1731420646079,-500.0,0.00021917,2]
[342082498,1731420646089,-500.0,0.00021917,2]
[342082499,1731420646099,-500.0,0.00021917,2]
[342082500,1731420646109,-500.0,0.00021917,2]
[342082501,1731420646119,-532.92453238,0.00021917,2]
[342082502,1731420646136,-500.0,0.00021917,2]
[342082503,1731420646148,-500.0,0.00021917,2]
[342082504,1731420646158,-940.77,0.00021917,2]
[342082505,1731420646171,-500.0,0.00021917,2]
[342082506,1731420646183,-500.0,0.00021917,2]
[342082507,1731420646194,-500.0,0.00021917,2]
[342082508,1731420646205,-500.0,0.00021917,2]
[342082509,1731420646217,-509.11958304,0.00021917,2]
[342082510,1731420646228,-500.0,0.00021917,2]
[342082511,1731420646238,-500.0,0.00021917,2]
[342082513,1731420646249,-500.0,0.00021917,2]
[342082515,1731420646259,-500.0,0.00021917,2]
[342082516,1731420646270,-500.0,0.00021917,2]
[342082518,1731420646280,-521.74223218,0.00021917,2]
[342082519,1731420646290,-500.0,0.00021917,2]
[342082521,1731420646301,-500.0,0.00021917,2]
[342082523,1731420646311,-500.0,0.00021917,2]
[342082524,1731420646321,-4236.06,0.00021917,2]
[342082526,1731420646333,-500.0,0.00021917,2]
[342082528,1731420646344,-2984.7,0.00021917,2]
[342082530,1731420646354,-500.0,0.00021917,2]
[342082531,1731420646364,-500.0,0.00021917,2]
[342082533,1731420646374,-16918.26,0.00021917,2]
[342082535,1731420646388,-500.0,0.00021917,2]
[342082536,1731420646398,-500.0,0.00021917,2]
[342082538,1731420646409,-500.0,0.00021917,2]
[342082539,1731420646419,-500.0,0.00021917,2]
[342082540,1731420646428,-500.0,0.00021917,2]
[342082541,1731420646438,-500.0,0.00021917,2]
[342082543,1731420646449,-500.0,0.00021917,2]
[342082545,1731420646459,-500.0,0.00021917,2]
[342082546,1731420646470,-500.0,0.00021917,2]
[342082547,1731420646481,-500.0,0.00021917,2]
[342082548,1731420646491,-500.0,0.00021917,2]
[342082549,1731420646501,-166.666666,0.00021918,2]
[342082550,1731420646512,-500.0,0.00021973,2]
[342082551,1731420646522,-500.0,0.00021973,2]
[342082552,1731420646532,-500.0,0.00021973,2]
[342082553,1731420646545,-500.0,0.00021973,2]
[342082554,1731420646555,-500.0,0.00021973,2]
[342082555,1731420646566,-500.0,0.00021973,2]
[342082556,1731420646576,-200.11141135,0.00021973,2]
[342082557,1731420646586,-500.0,0.00021973,2]
[342082558,1731420646595,-500.0,0.00021973,2]
[342082559,1731420646605,-1000.0,0.00021991,2]
[342082560,1731420646615,-167.0,0.00022,2]
[342082561,1731420646626,-3494.66,0.00022091,2]
[342082562,1731420646640,-486.79364302,0.00022091,2]
[342082563,1731420646650,-911.68767256,0.00022091,2]
[342082564,1731420646662,-151.0,0.00022091,7]
[342082565,1731420646673,-151.0,0.00022091,7]
[342082566,1731420646684,-614.0,0.000221,2]
[342082567,1731420646694,-1000.0,0.000221,2]
[342082568,1731420646704,-500.0,0.00022173,2]
[342082569,1731420646715,-500.0,0.00022173,2]
[342082570,1731420646725,-500.0,0.00022173,2]
[342082571,1731420646735,-500.0,0.00022173,2]
[342082572,1731420646745,-500.0,0.00022173,2]
[342082573,1731420646754,-513.4006803,0.00022173,2]
[342082574,1731420646765,-500.0,0.00022173,2]
[342082575,1731420646776,-500.0,0.00022173,2]
[342082576,1731420646788,-500.0,0.00022173,2]
[342082577,1731420646803,-500.0,0.00022173,2]
[342082578,1731420646813,-151.0,0.00022173,7]
[342082579,1731420646822,-151.0,0.00022173,7]
[342082580,1731420646834,-223.82518262,0.0002219,2]
[342082581,1731420646844,-2276.80958204,0.0002219,2]
[342082582,1731420646855,-293.53212175,0.0002219,2]
[342082583,1731420646868,-241.36302508,0.0002219,2]
[342082584,1731420646880,-151.0,0.0002219,7]
[342082585,1731420646890,-151.0,0.00022191,7]
[342082586,1731420646901,-151.0,0.00022191,7]
[342082587,1731420646911,-151.0,0.00022191,7]
[342082588,1731420646921,-151.0,0.00022191,7]
[342082589,1731420646931,-240.27656,0.00022191,7]
[342082590,1731420646941,-500.0,0.00022191,2]
[342082591,1731420646951,-151.0,0.00022191,7]
[342082592,1731420646961,-151.0,0.00022191,7]
[342082593,1731420646972,-320.79071255,0.00022191,2]
[342082594,1731420646981,-500.0,0.00022191,2]
[342082595,1731420646991,-424.5,0.00022191,2]
[342082596,1731420647003,-151.0,0.00022191,7]
[342082597,1731420647014,-151.0,0.00022191,7]
[342082598,1731420647024,-158.209045,0.00022191,7]
[342082599,1731420647034,-151.0,0.00022191,7]
[342082600,1731420647043,-500.0,0.00022191,2]
[342082601,1731420647053,-500.0,0.00022191,2]
[342082602,1731420647063,-500.0,0.00022191,2]
[342082603,1731420647072,-609.5704274,0.00022191,2]
[342082604,1731420647082,-504.82489191,0.00022191,2]
[342082605,1731420647092,-500.0,0.00022191,2]
[342082606,1731420647101,-365.14499957,0.00022191,2]
[342082607,1731420647111,-511.14394439,0.00022191,2]
[342082608,1731420647121,-500.0,0.00022191,2]
[342082609,1731420647134,-500.0,0.00022191,2]
[342082610,1731420647144,-632.18,0.00022191,2]
[342082611,1731420647153,-500.0,0.00022191,2]
[342082612,1731420647165,-165.975959,0.00022191,7]
[342082613,1731420647175,-500.0,0.00022191,2]
[342082614,1731420647184,-500.0,0.00022191,2]
[342082615,1731420647194,-500.0,0.00022191,2]
[342082616,1731420647203,-500.0,0.00022191,2]
[342082617,1731420647213,-500.0,0.00022191,2]
[342082618,1731420647223,-500.0,0.00022191,2]
[342082619,1731420647232,-500.0,0.00022191,2]
[342082620,1731420647242,-151.0,0.00022191,7]
[342082621,1731420647251,-851.81,0.00022191,2]
[342082622,1731420647260,-151.0,0.00022191,7]
[342082623,1731420647269,-151.0,0.00022191,7]
[342082624,1731420647279,-500.0,0.00022191,2]
[342082625,1731420647289,-500.0,0.00022191,2]
[342082626,1731420647298,-500.0,0.00022191,2]
[342082627,1731420647309,-633.42,0.00022191,2]
[342082628,1731420647318,-500.0,0.00022191,2]
[342082629,1731420647327,-500.0,0.00022191,2]
[342082630,1731420647337,-158.589767,0.00022191,7]
[342082631,1731420647347,-158.589767,0.00022191,7]
[342082632,1731420647356,-158.589767,0.00022191,7]
[342082633,1731420647366,-158.589767,0.00022191,7]
[342082634,1731420647376,-158.589767,0.00022191,7]
[342082635,1731420647388,-158.589767,0.00022191,7]
[342082636,1731420647398,-500.0,0.00022191,2]
[342082637,1731420647409,-500.0,0.00022191,2]
[342082638,1731420647418,-500.0,0.00022191,2]
[342082639,1731420647427,-500.0,0.00022191,2]
[342082640,1731420647437,-500.0,0.00022191,2]
[342082641,1731420647446,-500.0,0.00022191,2]
[342082642,1731420647455,-151.0,0.00022191,7]
[342082643,1731420647464,-156.37937,0.00022191,7]
[342082644,1731420647474,-186.78257719,0.00022191,2]
[342082645,1731420647484,-500.0,0.00022191,2]
[342082646,1731420647494,-624.74,0.00022191,2]
[342082647,1731420647504,-500.0,0.00022191,2]
[342082648,1731420647514,-500.0,0.00022191,2]
[342082649,1731420647524,-504.59,0.00022191,2]
[342082650,1731420647534,-616.80936563,0.00022191,2]
[342082651,1731420647543,-528.01,0.00022191,2]
[342082652,1731420647553,-500.0,0.00022191,2]
[342082653,1731420647563,-500.0,0.00022191,2]
[342082654,1731420647572,-500.0,0.00022191,2]
[342082655,1731420647581,-500.0,0.00022191,2]
[342082656,1731420647591,-151.0,0.00022191,7]
[342082657,1731420647600,-500.0,0.00022191,2]
[342082658,1731420647610,-151.0,0.00022191,7]
[342082659,1731420647619,-151.0,0.00022191,7]
[342082660,1731420647631,-1981.07,0.00022191,2]
[342082661,1731420647641,-519.50443949,0.00022191,2]
[342082662,1731420647650,-151.0,0.00022191,7]
[342082663,1731420647659,-151.0,0.00022191,7]
[342082664,1731420647668,-151.0,0.00022191,7]
[342082665,1731420647678,-1332.96,0.00022191,2]
[342082666,1731420647688,-151.0,0.00022191,7]
[342082667,1731420647698,-151.0,0.00022191,7]
[342082668,1731420647707,-151.0,0.00022191,7]
[342082669,1731420647802,-151.0,0.00022191,7]
[342082670,1731420647813,-151.0,0.00022191,7]
[342082671,1731420647824,-579.66,0.00022191,2]
[342082672,1731420647834,-151.0,0.00022191,7]
[342082673,1731420647846,-500.0,0.00022191,2]
[342082674,1731420647855,-151.0,0.00022191,7]
[342082675,1731420647865,-151.0,0.00022191,7]
[342082676,1731420647875,-151.0,0.00022191,7]
[342082677,1731420647887,-151.0,0.00022191,7]
[342082678,1731420647896,-1182.16,0.00022191,2]
[342082679,1731420647905,-253.9435,0.00022191,7]
[342082680,1731420647914,-151.0,0.00022191,7]
[342082681,1731420647924,-151.0,0.00022191,7]
[342082682,1731420647933,-593.64,0.00022191,2]
[342082683,1731420647943,-500.0,0.00022191,2]
[342082684,1731420647952,-500.0,0.00022191,2]
[342082685,1731420647962,-500.0,0.00022191,2]
[342082686,1731420647971,-779.3,0.00022191,2]
[342082687,1731420647981,-500.0,0.00022191,2]
[342082688,1731420647991,-1656.1,0.00022191,2]
[342082689,1731420647999,-500.0,0.00022191,2]
[342082690,1731420648009,-500.0,0.00022191,2]
[342082691,1731420648018,-500.0,0.00022191,2]
[342082692,1731420648026,-892.31,0.00022191,2]
[342082693,1731420648035,-500.0,0.00022191,2]
[342082694,1731420648045,-500.0,0.00022191,2]
[342082695,1731420648055,-500.0,0.00022191,2]
[342082696,1731420648065,-1615.45,0.00022191,2]
[342082697,1731420648075,-522.39,0.00022191,2]
[342082698,1731420648084,-500.0,0.00022191,2]
[342082699,1731420648094,-504.98372677,0.00022191,2]
[342082700,1731420648103,-500.0,0.00022191,2]
[342082701,1731420648113,-500.0,0.00022191,2]
[342082702,1731420648122,-838.12,0.00022191,2]
[342082703,1731420648133,-500.0,0.00022191,2]
[342082704,1731420648143,-759.31477236,0.00022191,2]
[342082714,1731420713273,158.732,0.0001828,2]
[342082715,1731420716464,158.748,0.000278,120]
[342082716,1731420794205,163.055975,0.00013973,2]
[342082717,1731420856922,251.79136551,0.00029041,120]
[342082718,1731420927293,-151.0,0.00022091,7]
[342082719,1731420927323,-151.34285,0.00022091,7]
[342082720,1731420927354,-151.0,0.00022091,7]
[342082721,1731420927401,-151.0,0.00022091,7]
[342082722,1731420927432,-151.0,0.00022091,7]
[342082723,1731420927463,-151.0,0.00022191,7]
[342082724,1731420927492,-151.0,0.00022191,7]
[342082725,1731420927517,-151.0,0.00022191,7]
[342082726,1731420927543,-199.306632,0.00022191,7]
[342082727,1731420927575,-151.0,0.00022191,7]
[342082728,1731420927606,-151.0,0.00022191,7]
[342082729,1731420927639,-151.0,0.00022191,7]
[342082730,1731420927665,-151.0,0.00022191,7]
[342082731,1731420927689,-151.0,0.00022191,7]
[342082732,1731420927720,-209.660038,0.00022191,7]
[342082733,1731420927749,-151.0,0.00022191,7]
[342082734,1731420927777,-151.0,0.00022191,7]
[342082735,1731420927804,-300.0,0.000224,10]
[342082736,1731420927830,-151.0,0.00022465,7]
[342082737,1731420927856,-151.0,0.00022465,7]
[342082738,1731420927902,-151.0,0.00022465,7]
[342082739,1731420927929,-297.314289,0.00022465,7]
[342082740,1731420927955,-152.238519,0.00022465,7]
[342082741,1731420927981,-158.589767,0.00022465,7]
[342082742,1731420928007,-158.589767,0.00022465,7]
[342082743,1731420928033,-158.589767,0.00022465,7]
[342082744,1731420928060,-151.0,0.00022465,7]
[342082745,1731420928085,-151.0,0.00022465,7]
[342082746,1731420928111,-151.0,0.00022465,7]
[342082747,1731420928138,-151.0,0.00022465,7]
[342082748,1731420928165,-151.0,0.00022465,7]
[342082749,1731420928193,-151.0,0.00022465,7]
[342082750,1731420928219,-151.0,0.00022465,7]
[342082751,1731420928246,-151.0,0.00022465,7]
[342082752,1731420928274,-151.0,0.00022465,7]
[342082753,1731420928299,-151.0,0.00022465,7]
[342082754,1731420928326,-151.0,0.00022465,7]
[342082755,1731420928355,-151.0,0.00022465,7]
[342082756,1731420928399,-151.0,0.00022465,7]
[342082757,1731420928425,-151.0,0.00022465,7]
[342082758,1731420928592,-151.0,0.00022465,7]
[342082759,1731420928618,-151.0,0.00022465,7]
[342082760,1731420928641,-151.0,0.00022465,7]
[342082761,1731420928664,-151.0,0.00022465,7]
[342082762,1731420928687,-151.0,0.00022465,7]
[342082763,1731420928711,-151.0,0.00022465,7]
[342082764,1731420928734,-151.0,0.00022465,7]
[342082765,1731420928757,-151.0,0.00022465,7]
[342082766,1731420928781,-151.0,0.00022465,7]
[342082768,1731421002792,1169.27083333,0.00020185,2]
[342082769,1731421101437,151.0,0.0003,120]
[342082775,1731421153321,1000.0,0.0003,120]
[342082776,1731421185558,1000.0,0.00027,70]
[342082786,1731421234853,200.0,0.00027,120]
[342082788,1731421316787,1169.27083333,0.00020185,2]
[342082790,1731421458428,150.0,0.00020185,2]
[342082791,1731421488508,163.055975,0.00013973,2]
[342082846,1731421629861,1169.27083333,0.00020185,2]
[342082847,1731421656722,150.0,0.00020185,2]
[342082913,1731421832132,-1169.27083333,0.00020186,2]
[342082916,1731421832142,-318.831391,0.0002041,2]
[342082918,1731421832152,-300.0,0.00020412,2]
[342082919,1731421832166,-300.0,0.00020412,2]
[342082921,1731421832176,-24900.0,0.00020413,2]
[342082922,1731421832186,-203.7249471,0.00020555,2]
[342082923,1731421832195,-232.231769,0.00020711,2]
[342082925,1731421832206,-501.54,0.000208,2]
[342082927,1731421832216,-3922.89062064,0.00021,2]
[342082928,1731421832225,-541.00059499,0.00021,2]
[342082929,1731421832235,-300.0,0.00021,3]
[342082930,1731421832247,-232.231769,0.00021396,2]
[342082932,1731421832257,-758.46518632,0.00021717,2]
[342082934,1731421832266,-710.31546662,0.00021717,2]
[342082935,1731421832278,-169.70288046,0.00021717,2]
[342082936,1731421832287,-210.29020075,0.00021726,2]
[342082937,1731421832302,-1.14572405,0.00021726,2]
[342082938,1731421832312,-305.9382545,0.00021726,2]
[342082939,1731421832322,-955.65504143,0.00021817,2]
[342082940,1731421832333,-44.34495857,0.00021817,2]
[342082941,1731421832343,-850.90849443,0.00021817,2]
[342082942,1731421832353,-3000.0,0.000219,2]
[342082943,1731421832362,-320.98,0.00021907,3]
[342082944,1731421832381,-160.49,0.00021907,3]
[342082945,1731421832390,-481.47,0.00021907,3]
[342082946,1731421832400,-187.75339948,0.00021907,2]
[342082947,1731421832410,-3000.0,0.0002191,2]
[342082948,1731421832419,-520.63126266,0.00021917,2]
[342082949,1731421832428,-500.0,0.00021917,2]
[342082950,1731421832439,-500.0,0.00021917,2]
[342082951,1731421832447,-501.18864326,0.00021917,2]
[342082952,1731421832456,-500.0,0.00021917,2]
[342082953,1731421832466,-500.0,0.00021917,2]
[342082954,1731421832474,-500.0,0.00021917,2]
[342082955,1731421832483,-538.83429899,0.00021917,2]
[342082956,1731421832493,-500.0,0.00021917,2]
[342082957,1731421832502,-500.0,0.00021917,2]
[342082958,1731421832511,-500.0,0.00021917,2]
[342082959,1731421832522,-500.0,0.00021917,2]
[342082960,1731421832532,-151.31023586,0.00021917,2]
[342082961,1731421832542,-465.75933801,0.00021917,2]
[342082962,1731421832552,-378.81593139,0.00021917,2]
[342082963,1731421832562,-500.0,0.00021917,2]
[342082964,1731421832573,-500.0,0.00021917,2]
[342082965,1731421832583,-500.0,0.00021917,2]
[342082966,1731421832593,-500.0,0.00021917,2]
[342082967,1731421832603,-500.0,0.00021917,2]
[342082968,1731421832614,-500.0,0.00021917,2]
[342082969,1731421832631,-500.0,0.00021917,2]
[342082970,1731421832641,-500.0,0.00021917,2]
[342082971,1731421832651,-500.0,0.00021917,2]
[342082972,1731421832661,-500.0,0.00021917,2]
[342082973,1731421832671,-500.0,0.00021917,2]
[342082974,1731421832681,-500.0,0.00021917,2]
[342082975,1731421832691,-500.0,0.00021917,2]
[342082976,1731421832701,-500.0,0.00021917,2]
[342082977,1731421832711,-500.0,0.00021917,2]
[342082978,1731421832721,-500.0,0.00021917,2]
[342082979,1731421832730,-500.0,0.00021917,2]
[342082980,1731421832739,-500.0,0.00021917,2]
[342082981,1731421832750,-500.0,0.00021917,2]
[342082982,1731421832761,-500.0,0.00021917,2]
[342082983,1731421832771,-608.23,0.00021917,2]
[342082984,1731421832781,-500.0,0.00021917,2]
[342082985,1731421832790,-500.0,0.00021917,2]
[342082986,1731421832801,-500.0,0.00021917,2]
[342082987,1731421832810,-500.0,0.00021917,2]
[342082988,1731421832820,-500.0,0.00021917,2]
[342082989,1731421832830,-500.0,0.00021917,2]
[342082990,1731421832839,-500.0,0.00021917,2]
[342082991,1731421832849,-745.09,0.00021917,2]